[Event "Titled Tuesday Blitz January 03 Early 2023"]
[White "Zia, Tahsin Tajwar"]
[Black "Rangel, Daniel"]
[WhiteFideId "10211888"]
[BlackFideId "2124475"]
[WhiteElo "2315"]
[BlackElo "2207"]
[Result "1/2-1/2"]
[Round "03"]
[TimeControl "180+2"]
[Date "2023.01.03"]
[WhiteClock "0:00:07"]
[BlackClock "0:00:05"]

1. d4 {[%clk 0:01:34]}  Nf6 {[%clk 0:02:48]} 2. c4 {[%clk 0:01:26]}  e6 {[%clk 0:02:46]} 3. Nc3 {[%clk 0:01:25]}  Bb4 {[%clk 0:02:44]} 4. a3 {[%clk 0:01:26]}  Be7 {[%clk 0:02:43]} 5. e4 {[%clk 0:01:25]}  d6 {[%clk 0:02:42]} 6. Nf3 {[%clk 0:01:16]}  O-O {[%clk 0:02:41]} 7. Be2 {[%clk 0:01:16]}  c5 {[%clk 0:02:40]} 8. d5 {[%clk 0:01:10]}  e5 {[%clk 0:02:38]} 9. O-O {[%clk 0:01:08]}  Re8 {[%clk 0:02:38]} 10. Ne1 {[%clk 0:01:01]}  Nbd7 {[%clk 0:02:39]} 11. Nd3 {[%clk 0:01:00]}  Nf8 {[%clk 0:02:39]} 12. f4 {[%clk 0:00:58]}  exf4 {[%clk 0:02:38]} 13. Bxf4 {[%clk 0:00:57]}  Ng6 {[%clk 0:02:38]} 14. Bg3 {[%clk 0:00:56]}  Bf8 {[%clk 0:02:36]} 15. Bf3 {[%clk 0:00:52]}  a6 {[%clk 0:02:29]} 16. Re1 {[%clk 0:00:49]}  Rb8 {[%clk 0:02:28]} 17. e5 {[%clk 0:00:45]}  dxe5 {[%clk 0:02:21]} 18. Nxe5 {[%clk 0:00:44]}  Bd6 {[%clk 0:02:11]} 19. Nxg6 {[%clk 0:00:40]}  Rxe1+ {[%clk 0:02:11]} 20. Qxe1 {[%clk 0:00:39]}  hxg6 {[%clk 0:02:12]} 21. Rd1 {[%clk 0:00:32]}  Bf5 {[%clk 0:02:04]} 22. Bxd6 {[%clk 0:00:26]}  Qxd6 {[%clk 0:02:05]} 23. Qg3 {[%clk 0:00:24]}  Qxg3 {[%clk 0:02:01]} 24. hxg3 {[%clk 0:00:24]}  b5 {[%clk 0:02:00]} 25. cxb5 {[%clk 0:00:20]}  axb5 {[%clk 0:02:01]} 26. d6 {[%clk 0:00:19]}  Kf8 {[%clk 0:01:53]} 27. Bc6 {[%clk 0:00:18]}  b4 {[%clk 0:01:51]} 28. axb4 {[%clk 0:00:17]}  cxb4 {[%clk 0:01:49]} 29. Nd5 {[%clk 0:00:13]}  Ne4 {[%clk 0:01:42]} 30. d7 {[%clk 0:00:08]}  Rd8 {[%clk 0:01:35]} 31. Nxb4 {[%clk 0:00:08]}  Nxg3 {[%clk 0:01:30]} 32. Bb5 {[%clk 0:00:08]}  Be4 {[%clk 0:01:23]} 33. Kf2 {[%clk 0:00:07]}  Nf5 {[%clk 0:01:20]} 34. g4 {[%clk 0:00:06]}  Ne7 {[%clk 0:01:16]} 35. Ke3 {[%clk 0:00:06]}  Ba8 {[%clk 0:01:13]} 36. Rd6 {[%clk 0:00:06]}  g5 {[%clk 0:00:53]} 37. Kd4 {[%clk 0:00:07]}  f5 {[%clk 0:00:53]} 38. Ke5 {[%clk 0:00:06]}  f4 {[%clk 0:00:51]} 39. Ke6 {[%clk 0:00:06]}  f3 {[%clk 0:00:50]} 40. Nc6 {[%clk 0:00:05]}  Bxc6 {[%clk 0:00:45]} 41. Bxc6 {[%clk 0:00:06]}  Ng6 {[%clk 0:00:45]} 42. Bxf3 {[%clk 0:00:06]}  Nf4+ {[%clk 0:00:45]} 43. Kf5 {[%clk 0:00:06]}  Ke7 {[%clk 0:00:46]} 44. Rd1 {[%clk 0:00:05]}  Rf8+ {[%clk 0:00:37]} 45. Kxg5 {[%clk 0:00:05]}  Ne6+ {[%clk 0:00:38]} 46. Kg6 {[%clk 0:00:05]}  Rxf3 {[%clk 0:00:37]} 47. d8=Q+ {[%clk 0:00:04]}  Nxd8 {[%clk 0:00:35]} 48. Kxg7 {[%clk 0:00:05]}  Ne6+ {[%clk 0:00:34]} 49. Kh6 {[%clk 0:00:04]}  Kf6 {[%clk 0:00:26]} 50. g5+ {[%clk 0:00:04]}  Nxg5 {[%clk 0:00:25]} 51. Rd6+ {[%clk 0:00:04]}  Ne6 {[%clk 0:00:25]} 52. Kh5 {[%clk 0:00:04]}  Ke7 {[%clk 0:00:20]} 53. Ra6 {[%clk 0:00:03]}  Kf6 {[%clk 0:00:19]} 54. Kg4 {[%clk 0:00:03]}  Rf4+ {[%clk 0:00:18]} 55. Kg3 {[%clk 0:00:03]}  Rb4 {[%clk 0:00:19]} 56. Ra2 {[%clk 0:00:03]}  Kf5 {[%clk 0:00:19]} 57. Kf3 {[%clk 0:00:04]}  Rb3+ {[%clk 0:00:18]} 58. Ke2 {[%clk 0:00:04]}  Ke4 {[%clk 0:00:17]} 59. Kd2 {[%clk 0:00:03]}  Rh3 {[%clk 0:00:17]} 60. Kc2 {[%clk 0:00:03]}  Nd4+ {[%clk 0:00:17]} 61. Kd2 {[%clk 0:00:03]}  Kd5 {[%clk 0:00:14]} 62. Ra5+ {[%clk 0:00:03]}  Kc4 {[%clk 0:00:14]} 63. Ra4+ {[%clk 0:00:04]}  Kc5 {[%clk 0:00:14]} 64. Ra5+ {[%clk 0:00:04]}  Nb5 {[%clk 0:00:13]} 65. Ra8 {[%clk 0:00:03]}  Kb4 {[%clk 0:00:14]} 66. Rb8 {[%clk 0:00:03]}  Kc4 {[%clk 0:00:11]} 67. Rc8+ {[%clk 0:00:03]}  Kd5 {[%clk 0:00:10]} 68. Rb8 {[%clk 0:00:03]}  Nd6 {[%clk 0:00:11]} 69. Kc2 {[%clk 0:00:03]}  Kd4 {[%clk 0:00:10]} 70. Rb3 {[%clk 0:00:02]}  Rh2+ {[%clk 0:00:09]} 71. Kb1 {[%clk 0:00:03]}  Nc4 {[%clk 0:00:08]} 72. Ka2 {[%clk 0:00:03]}  Kc5 {[%clk 0:00:07]} 73. Rg3 {[%clk 0:00:03]}  Kb4 {[%clk 0:00:07]} 74. Rb3+ {[%clk 0:00:03]}  Ka4 {[%clk 0:00:07]} 75. Rb8 {[%clk 0:00:04]}  Na5 {[%clk 0:00:06]} 76. Rb6 {[%clk 0:00:02]}  Rg2 {[%clk 0:00:05]} 77. Rb8 {[%clk 0:00:03]}  Rc2 {[%clk 0:00:05]} 78. Rb6 {[%clk 0:00:03]}  Re2 {[%clk 0:00:04]} 79. Rb8 {[%clk 0:00:03]}  Nc4 {[%clk 0:00:04]} 80. Rb7 {[%clk 0:00:03]}  Ka5 {[%clk 0:00:05]} 81. Rb3 {[%clk 0:00:04]}  Ka6 {[%clk 0:00:05]} 82. Rb4 {[%clk 0:00:04]}  Nb6 {[%clk 0:00:05]} 83. Ka3 {[%clk 0:00:04]}  Kb7 {[%clk 0:00:06]} 84. b3 {[%clk 0:00:04]}  Kc6 {[%clk 0:00:07]} 85. Rh4 {[%clk 0:00:04]}  Kc5 {[%clk 0:00:07]} 86. Rh5+ {[%clk 0:00:04]}  Nd5 {[%clk 0:00:07]} 87. Rg5 {[%clk 0:00:05]}  Kd4 {[%clk 0:00:07]} 88. Rg4+ {[%clk 0:00:06]}  Kc3 {[%clk 0:00:07]} 89. Rg3+ {[%clk 0:00:06]}  Kc2 {[%clk 0:00:07]} 90. b4 {[%clk 0:00:06]}  Nc3 {[%clk 0:00:07]} 91. Rh3 {[%clk 0:00:05]}  Re1 {[%clk 0:00:07]} 92. b5 {[%clk 0:00:04]}  Nxb5+ {[%clk 0:00:05]} 93. Kb4 {[%clk 0:00:04]}  Nc3 {[%clk 0:00:06]} 94. Rxc3+ {[%clk 0:00:04]}  Kd2 {[%clk 0:00:06]} 95. Rb3 {[%clk 0:00:04]}  Re4+ {[%clk 0:00:05]} 96. Kc5 {[%clk 0:00:05]}  Kc2 {[%clk 0:00:05]} 97. Rb4 {[%clk 0:00:05]}  Re5+ {[%clk 0:00:05]} 98. Kd6 {[%clk 0:00:05]}  Rh5 {[%clk 0:00:05]} 99. Rd4 {[%clk 0:00:05]}  Kc3 {[%clk 0:00:05]} 100. Rd5 {[%clk 0:00:06]}  Rxd5+ {[%clk 0:00:05]} 101. Kxd5 {[%clk 0:00:07]} 1/2-1/2


[Site "https://www.chess.com"]

[Event "Titled Tuesday Blitz January 03 Early 2023"]
[White "Krstic, Milos"]
[Black "Crispin Ferreras, Darvi Abraham"]
[WhiteFideId "954888"]
[BlackFideId "6402771"]
[WhiteElo "2183"]
[BlackElo "2103"]
[Result "1/2-1/2"]
[Round "03"]
[TimeControl "180+2"]
[Date "2023.01.03"]
[WhiteClock "0:00:39"]
[BlackClock "0:00:37"]

1. e4 {[%clk 0:03:00]}  e6 {[%clk 0:02:59]} 2. d4 {[%clk 0:03:00]}  d5 {[%clk 0:03:00]} 3. exd5 {[%clk 0:03:01]}  exd5 {[%clk 0:03:00]} 4. Bd3 {[%clk 0:03:02]}  Bd6 {[%clk 0:03:00]} 5. Ne2 {[%clk 0:03:02]}  Ne7 {[%clk 0:03:01]} 6. O-O {[%clk 0:03:01]}  Bf5 {[%clk 0:03:01]} 7. Bf4 {[%clk 0:03:02]}  Nbc6 {[%clk 0:03:00]} 8. c3 {[%clk 0:03:02]}  Qd7 {[%clk 0:03:00]} 9. Bxd6 {[%clk 0:03:00]}  Qxd6 {[%clk 0:02:59]} 10. b4 {[%clk 0:03:00]}  a6 {[%clk 0:02:58]} 11. a4 {[%clk 0:03:00]}  Nd8 {[%clk 0:02:58]} 12. Ng3 {[%clk 0:02:59]}  Bxd3 {[%clk 0:02:57]} 13. Qxd3 {[%clk 0:03:00]}  Qg6 {[%clk 0:02:57]} 14. Qe2 {[%clk 0:02:58]}  Ne6 {[%clk 0:02:56]} 15. Nd2 {[%clk 0:02:53]}  O-O {[%clk 0:02:56]} 16. Nf3 {[%clk 0:02:51]}  Rfe8 {[%clk 0:02:52]} 17. Ne5 {[%clk 0:02:46]}  Qf6 {[%clk 0:02:51]} 18. Rfe1 {[%clk 0:02:36]}  Nf4 {[%clk 0:02:50]} 19. Qf3 {[%clk 0:02:37]}  Neg6 {[%clk 0:02:49]} 20. Nxg6 {[%clk 0:02:26]}  hxg6 {[%clk 0:02:47]} 21. Ne2 {[%clk 0:02:22]}  Nxe2+ {[%clk 0:02:46]} 22. Rxe2 {[%clk 0:02:23]}  Qxf3 {[%clk 0:02:45]} 23. Rxe8+ {[%clk 0:02:22]}  Rxe8 {[%clk 0:02:46]} 24. gxf3 {[%clk 0:02:23]}  Re2 {[%clk 0:02:45]} 25. Ra3 {[%clk 0:02:15]}  Kf8 {[%clk 0:02:45]} 26. Kf1 {[%clk 0:02:15]}  Rc2 {[%clk 0:02:45]} 27. Rb3 {[%clk 0:02:16]}  Ke7 {[%clk 0:02:44]} 28. Kg2 {[%clk 0:02:10]}  Kd6 {[%clk 0:02:43]} 29. Kg3 {[%clk 0:02:10]}  b5 {[%clk 0:02:39]} 30. axb5 {[%clk 0:02:08]}  axb5 {[%clk 0:02:39]} 31. f4 {[%clk 0:02:05]}  c6 {[%clk 0:02:38]} 32. h4 {[%clk 0:02:04]}  Ke6 {[%clk 0:02:36]} 33. f3 {[%clk 0:02:04]}  Rc1 {[%clk 0:02:35]} 34. Ra3 {[%clk 0:02:03]}  Kf5 {[%clk 0:02:29]} 35. Rb3 {[%clk 0:02:02]}  Rg1+ {[%clk 0:02:28]} 36. Kf2 {[%clk 0:02:02]}  Rh1 {[%clk 0:02:28]} 37. Kg3 {[%clk 0:02:02]}  Rg1+ {[%clk 0:02:28]} 38. Kf2 {[%clk 0:02:02]}  Ra1 {[%clk 0:02:20]} 39. Kg3 {[%clk 0:02:02]}  Ra2 {[%clk 0:02:20]} 40. Rb1 {[%clk 0:01:57]}  Rc2 {[%clk 0:02:20]} 41. Rb3 {[%clk 0:01:57]}  Rc1 {[%clk 0:02:17]} 42. Ra3 {[%clk 0:01:56]}  Rg1+ {[%clk 0:02:12]} 43. Kf2 {[%clk 0:01:57]}  Rc1 {[%clk 0:02:12]} 44. Kg3 {[%clk 0:01:57]}  Rc2 {[%clk 0:02:12]} 45. Rb3 {[%clk 0:01:57]}  Ra2 {[%clk 0:02:12]} 46. Rb1 {[%clk 0:01:57]}  Ra3 {[%clk 0:02:12]} 47. Rc1 {[%clk 0:01:57]}  Rb3 {[%clk 0:02:12]} 48. Rc2 {[%clk 0:01:57]}  f6 {[%clk 0:02:11]} 49. Rc1 {[%clk 0:01:57]}  Rb2 {[%clk 0:02:10]} 50. Ra1 {[%clk 0:01:55]}  Rb3 {[%clk 0:02:09]} 51. Rc1 {[%clk 0:01:55]}  g5 {[%clk 0:02:09]} 52. fxg5 {[%clk 0:01:55]}  fxg5 {[%clk 0:02:10]} 53. hxg5 {[%clk 0:01:54]}  Kxg5 {[%clk 0:02:10]} 54. Rc2 {[%clk 0:01:54]}  Kf5 {[%clk 0:02:10]} 55. Rc1 {[%clk 0:01:54]}  g5 {[%clk 0:02:10]} 56. Rc2 {[%clk 0:01:55]}  Rb1 {[%clk 0:02:10]} 57. Ra2 {[%clk 0:01:55]}  Rc1 {[%clk 0:02:10]} 58. Ra3 {[%clk 0:01:55]}  Rc2 {[%clk 0:02:10]} 59. Rb3 {[%clk 0:01:55]}  Rd2 {[%clk 0:02:05]} 60. Ra3 {[%clk 0:01:34]}  Rd3 {[%clk 0:02:05]} 61. Kg2 {[%clk 0:01:35]}  Kf4 {[%clk 0:02:05]} 62. Ra8 {[%clk 0:01:34]}  Rxc3 {[%clk 0:02:05]} 63. Rf8+ {[%clk 0:01:34]}  Ke3 {[%clk 0:02:03]} 64. Rg8 {[%clk 0:01:34]}  Ke2 {[%clk 0:01:58]} 65. Re8+ {[%clk 0:01:27]}  Re3 {[%clk 0:01:58]} 66. Rc8 {[%clk 0:01:27]}  Rxf3 {[%clk 0:01:50]} 67. Rxc6 {[%clk 0:01:27]}  Rd3 {[%clk 0:01:50]} 68. Rc5 {[%clk 0:01:25]}  Rxd4 {[%clk 0:01:50]} 69. Rxb5 {[%clk 0:01:26]}  Kd3 {[%clk 0:01:47]} 70. Rb8 {[%clk 0:01:22]}  Kc3 {[%clk 0:01:45]} 71. b5 {[%clk 0:01:19]}  Rb4 {[%clk 0:01:45]} 72. Kf3 {[%clk 0:01:17]}  d4 {[%clk 0:01:45]} 73. Ke4 {[%clk 0:01:12]}  Kd2 {[%clk 0:01:40]} 74. b6 {[%clk 0:01:06]}  d3+ {[%clk 0:01:40]} 75. Kf3 {[%clk 0:01:06]}  g4+ {[%clk 0:01:40]} 76. Kf2 {[%clk 0:01:05]}  Kd1 {[%clk 0:01:40]} 77. b7 {[%clk 0:01:04]}  d2 {[%clk 0:01:40]} 78. Kg2 {[%clk 0:00:59]}  Rb3 {[%clk 0:01:39]} 79. Kf2 {[%clk 0:00:58]}  g3+ {[%clk 0:01:39]} 80. Kg2 {[%clk 0:00:59]}  Kc2 {[%clk 0:00:50]} 81. Rc8+ {[%clk 0:00:58]}  Kb1 {[%clk 0:00:50]} 82. b8=Q {[%clk 0:00:53]}  d1=Q {[%clk 0:00:50]} 83. Qf4 {[%clk 0:00:41]}  Qd5+ {[%clk 0:00:47]} 84. Kg1 {[%clk 0:00:38]}  Qd1+ {[%clk 0:00:41]} 85. Qf1 {[%clk 0:00:38]}  Qxf1+ {[%clk 0:00:36]} 86. Kxf1 {[%clk 0:00:38]}  Rb2 {[%clk 0:00:36]} 87. Rg8 {[%clk 0:00:37]}  g2+ {[%clk 0:00:36]} 88. Rxg2 {[%clk 0:00:38]}  Rxg2 {[%clk 0:00:37]} 89. Kxg2 {[%clk 0:00:39]} 1/2-1/2


[Site "https://www.chess.com"]

[Event "Titled Tuesday Blitz January 03 Early 2023"]
[White "Ibadov, Dashgyn"]
[Black "Thiel, Thomas"]
[WhiteFideId "24107514"]
[BlackFideId "4615964"]
[WhiteElo "2391"]
[BlackElo "2234"]
[Result "1-0"]
[Round "03"]
[TimeControl "180+2"]
[Date "2023.01.03"]
[WhiteClock "0:00:24"]
[BlackClock "0:00:04"]

1. e4 {[%clk 0:02:58]}  d5 {[%clk 0:02:59]} 2. exd5 {[%clk 0:02:57]}  Nf6 {[%clk 0:02:59]} 3. Nf3 {[%clk 0:02:50]}  Nxd5 {[%clk 0:02:58]} 4. d4 {[%clk 0:02:49]}  g6 {[%clk 0:02:58]} 5. c4 {[%clk 0:02:49]}  Nb6 {[%clk 0:02:56]} 6. c5 {[%clk 0:02:47]}  Nd5 {[%clk 0:02:54]} 7. Nc3 {[%clk 0:02:47]}  Bg7 {[%clk 0:02:54]} 8. Bc4 {[%clk 0:02:48]}  Nxc3 {[%clk 0:02:54]} 9. bxc3 {[%clk 0:02:49]}  O-O {[%clk 0:02:53]} 10. O-O {[%clk 0:02:48]}  Nc6 {[%clk 0:02:53]} 11. Bg5 {[%clk 0:02:42]}  h6 {[%clk 0:02:48]} 12. Bh4 {[%clk 0:02:42]}  Na5 {[%clk 0:02:48]} 13. Bd3 {[%clk 0:02:31]}  b6 {[%clk 0:02:47]} 14. cxb6 {[%clk 0:02:31]}  axb6 {[%clk 0:02:47]} 15. Re1 {[%clk 0:02:31]}  g5 {[%clk 0:02:45]} 16. Bg3 {[%clk 0:02:31]}  Ba6 {[%clk 0:02:44]} 17. Bxa6 {[%clk 0:02:12]}  Rxa6 {[%clk 0:02:45]} 18. Qe2 {[%clk 0:02:13]}  Ra7 {[%clk 0:02:39]} 19. Qxe7 {[%clk 0:02:13]}  Qxe7 {[%clk 0:02:38]} 20. Rxe7 {[%clk 0:02:14]}  Nb3 {[%clk 0:02:19]} 21. Rb1 {[%clk 0:02:08]}  Na5 {[%clk 0:02:17]} 22. Rxc7 {[%clk 0:02:03]}  Rxc7 {[%clk 0:02:08]} 23. Bxc7 {[%clk 0:02:04]}  Rc8 {[%clk 0:02:07]} 24. Bxb6 {[%clk 0:02:02]}  Nc4 {[%clk 0:02:06]} 25. Bc5 {[%clk 0:02:02]}  Bf8 {[%clk 0:01:59]} 26. Bxf8 {[%clk 0:02:00]}  Kxf8 {[%clk 0:01:59]} 27. a4 {[%clk 0:01:44]}  Nd6 {[%clk 0:01:54]} 28. Ra1 {[%clk 0:01:36]}  Rxc3 {[%clk 0:01:45]} 29. a5 {[%clk 0:01:36]}  Nb5 {[%clk 0:01:45]} 30. a6 {[%clk 0:01:34]}  Na7 {[%clk 0:01:44]} 31. Kf1 {[%clk 0:01:31]}  Rc7 {[%clk 0:01:40]} 32. Ne5 {[%clk 0:01:22]}  f6 {[%clk 0:01:35]} 33. Nd3 {[%clk 0:01:20]}  Ke7 {[%clk 0:01:26]} 34. Rb1 {[%clk 0:01:18]}  Kd7 {[%clk 0:01:23]} 35. Rb7 {[%clk 0:01:19]}  Rxb7 {[%clk 0:01:18]} 36. axb7 {[%clk 0:01:19]}  Kc7 {[%clk 0:01:08]} 37. Nc5 {[%clk 0:01:19]}  Nb5 {[%clk 0:00:54]} 38. d5 {[%clk 0:01:13]}  Nd6 {[%clk 0:00:54]} 39. Ke2 {[%clk 0:01:12]}  Kb8 {[%clk 0:00:40]} 40. Kd3 {[%clk 0:01:11]}  Kc7 {[%clk 0:00:40]} 41. f3 {[%clk 0:01:09]}  Kb8 {[%clk 0:00:39]} 42. g4 {[%clk 0:01:05]}  Kc7 {[%clk 0:00:38]} 43. Kd4 {[%clk 0:00:57]}  Kb8 {[%clk 0:00:35]} 44. Nd7+ {[%clk 0:00:52]}  Kxb7 {[%clk 0:00:35]} 45. Nxf6 {[%clk 0:00:53]}  Kc7 {[%clk 0:00:30]} 46. Ke5 {[%clk 0:00:52]}  Nc4+ {[%clk 0:00:29]} 47. Ke6 {[%clk 0:00:52]}  Kd8 {[%clk 0:00:22]} 48. Ng8 {[%clk 0:00:48]}  Nd2 {[%clk 0:00:20]} 49. Nxh6 {[%clk 0:00:48]}  Nxf3 {[%clk 0:00:19]} 50. d6 {[%clk 0:00:40]}  Nd4+ {[%clk 0:00:14]} 51. Kf6 {[%clk 0:00:38]}  Nf3 {[%clk 0:00:13]} 52. h3 {[%clk 0:00:26]}  Kd7 {[%clk 0:00:12]} 53. Nf7 {[%clk 0:00:27]}  Ke8 {[%clk 0:00:06]} 54. Nxg5 {[%clk 0:00:24]}  Nd4 {[%clk 0:00:04]} 55. h4 {[%clk 0:00:24]} 1-0


[Site "https://www.chess.com"]

[Event "Titled Tuesday Blitz January 03 Early 2023"]
[White "Andreev, Konstantin"]
[Black "Osiecki, Stanislaw"]
[WhiteFideId "24239305"]
[BlackFideId "1102990"]
[WhiteElo "2195"]
[BlackElo "2055"]
[Result "1/2-1/2"]
[Round "03"]
[TimeControl "180+2"]
[Date "2023.01.03"]
[WhiteClock "0:00:22"]
[BlackClock "0:00:11"]

1. e4 {[%clk 0:03:00]}  e6 {[%clk 0:02:59]} 2. d4 {[%clk 0:03:00]}  d5 {[%clk 0:02:54]} 3. Nc3 {[%clk 0:03:00]}  Bb4 {[%clk 0:02:53]} 4. e5 {[%clk 0:02:59]}  c5 {[%clk 0:02:53]} 5. a3 {[%clk 0:02:55]}  Bxc3+ {[%clk 0:02:53]} 6. bxc3 {[%clk 0:02:56]}  Qc7 {[%clk 0:02:53]} 7. Qg4 {[%clk 0:02:55]}  f5 {[%clk 0:02:52]} 8. Qg3 {[%clk 0:02:54]}  cxd4 {[%clk 0:02:52]} 9. cxd4 {[%clk 0:02:38]}  Ne7 {[%clk 0:02:50]} 10. c3 {[%clk 0:02:33]}  O-O {[%clk 0:02:43]} 11. Bd2 {[%clk 0:02:32]}  b6 {[%clk 0:02:43]} 12. Bd3 {[%clk 0:02:32]}  Ba6 {[%clk 0:02:42]} 13. Bxa6 {[%clk 0:02:32]}  Nxa6 {[%clk 0:02:42]} 14. Ne2 {[%clk 0:02:32]}  Qd7 {[%clk 0:02:37]} 15. h4 {[%clk 0:02:32]}  Nc6 {[%clk 0:02:29]} 16. h5 {[%clk 0:02:31]}  Na5 {[%clk 0:02:26]} 17. Rh3 {[%clk 0:02:23]}  Nb3 {[%clk 0:02:24]} 18. Ra2 {[%clk 0:02:23]}  Nxd2 {[%clk 0:02:24]} 19. Rxd2 {[%clk 0:02:24]}  Rf7 {[%clk 0:02:18]} 20. Qe3 {[%clk 0:02:22]}  Qb5 {[%clk 0:02:04]} 21. Nf4 {[%clk 0:02:21]}  Re8 {[%clk 0:02:01]} 22. Rg3 {[%clk 0:02:18]}  Qb1+ {[%clk 0:01:59]} 23. Ke2 {[%clk 0:02:17]}  Qe4 {[%clk 0:01:58]} 24. Qxe4 {[%clk 0:02:09]}  fxe4 {[%clk 0:01:54]} 25. Rg4 {[%clk 0:02:09]}  Nc7 {[%clk 0:01:43]} 26. Ke3 {[%clk 0:02:07]}  Nb5 {[%clk 0:01:41]} 27. c4 {[%clk 0:02:06]}  Nxa3 {[%clk 0:01:37]} 28. cxd5 {[%clk 0:01:56]}  Nc4+ {[%clk 0:01:36]} 29. Ke2 {[%clk 0:01:56]}  Nxd2 {[%clk 0:01:36]} 30. Kxd2 {[%clk 0:01:57]}  exd5 {[%clk 0:01:34]} 31. Nxd5 {[%clk 0:01:51]}  Rd8 {[%clk 0:01:30]} 32. e6 {[%clk 0:01:36]}  Rxd5 {[%clk 0:01:21]} 33. exf7+ {[%clk 0:01:33]}  Kxf7 {[%clk 0:01:21]} 34. Rxe4 {[%clk 0:01:34]}  Rxh5 {[%clk 0:01:21]} 35. Kd3 {[%clk 0:01:32]}  Ra5 {[%clk 0:01:18]} 36. Kc4 {[%clk 0:01:27]}  Ra2 {[%clk 0:01:17]} 37. Rf4+ {[%clk 0:01:15]}  Ke6 {[%clk 0:01:15]} 38. g4 {[%clk 0:01:11]}  h6 {[%clk 0:00:41]} 39. Rf8 {[%clk 0:01:07]}  a5 {[%clk 0:00:37]} 40. f3 {[%clk 0:01:07]}  a4 {[%clk 0:00:35]} 41. Re8+ {[%clk 0:01:07]}  Kd6 {[%clk 0:00:31]} 42. Rd8+ {[%clk 0:01:05]}  Kc7 {[%clk 0:00:29]} 43. Rg8 {[%clk 0:01:05]}  Rb2 {[%clk 0:00:24]} 44. Rxg7+ {[%clk 0:01:03]}  Kc6 {[%clk 0:00:24]} 45. d5+ {[%clk 0:01:02]}  Kd6 {[%clk 0:00:23]} 46. Rg6+ {[%clk 0:01:03]}  Kc7 {[%clk 0:00:23]} 47. Rg7+ {[%clk 0:01:01]}  Kd6 {[%clk 0:00:23]} 48. Rg6+ {[%clk 0:01:01]}  Kc7 {[%clk 0:00:23]} 49. Rxh6 {[%clk 0:00:38]}  a3 {[%clk 0:00:23]} 50. Kc3 {[%clk 0:00:38]}  Rf2 {[%clk 0:00:21]} 51. g5 {[%clk 0:00:30]}  Rxf3+ {[%clk 0:00:20]} 52. Kc4 {[%clk 0:00:27]}  a2 {[%clk 0:00:20]} 53. Rh1 {[%clk 0:00:27]}  Rg3 {[%clk 0:00:17]} 54. Ra1 {[%clk 0:00:22]}  Rxg5 {[%clk 0:00:14]} 55. Rxa2 {[%clk 0:00:22]}  Rg4+ {[%clk 0:00:14]} 56. Kb5 {[%clk 0:00:21]}  Rd4 {[%clk 0:00:12]} 57. Rc2+ {[%clk 0:00:17]}  Kd6 {[%clk 0:00:11]} 58. Kxb6 {[%clk 0:00:17]}  Kxd5 {[%clk 0:00:12]} 59. Rc8 {[%clk 0:00:17]}  Rb4+ {[%clk 0:00:08]} 60. Ka5 {[%clk 0:00:18]}  Rc4 {[%clk 0:00:08]} 61. Rd8+ {[%clk 0:00:18]}  Kc5 {[%clk 0:00:07]} 62. Ka6 {[%clk 0:00:16]}  Ra4+ {[%clk 0:00:07]} 63. Kb7 {[%clk 0:00:16]}  Ra2 {[%clk 0:00:07]} 64. Rh8 {[%clk 0:00:15]}  Kd5 {[%clk 0:00:06]} 65. Kc7 {[%clk 0:00:15]}  Rc2+ {[%clk 0:00:05]} 66. Kd7 {[%clk 0:00:15]}  Ra2 {[%clk 0:00:05]} 67. Rh5+ {[%clk 0:00:16]}  Ke4 {[%clk 0:00:04]} 68. Kd6 {[%clk 0:00:16]}  Ra6+ {[%clk 0:00:04]} 69. Ke7 {[%clk 0:00:16]}  Ra7+ {[%clk 0:00:04]} 70. Kd8 {[%clk 0:00:17]}  Ra8+ {[%clk 0:00:05]} 71. Kc7 {[%clk 0:00:17]}  Ra7+ {[%clk 0:00:04]} 72. Kb8 {[%clk 0:00:18]}  Rf7 {[%clk 0:00:04]} 73. Rh4+ {[%clk 0:00:19]}  Ke5 {[%clk 0:00:04]} 74. Ra4 {[%clk 0:00:20]}  Kd6 {[%clk 0:00:04]} 75. Ra6+ {[%clk 0:00:19]}  Kc5 {[%clk 0:00:04]} 76. Ra1 {[%clk 0:00:18]}  Rf8+ {[%clk 0:00:05]} 77. Kc7 {[%clk 0:00:18]}  Rf7+ {[%clk 0:00:06]} 78. Kd8 {[%clk 0:00:19]}  Rf6 {[%clk 0:00:05]} 79. Ke7 {[%clk 0:00:19]}  Rf4 {[%clk 0:00:04]} 80. Rc1+ {[%clk 0:00:20]}  Kd4 {[%clk 0:00:05]} 81. Rd1+ {[%clk 0:00:20]}  Ke4 {[%clk 0:00:06]} 82. Ke6 {[%clk 0:00:20]}  Kf3 {[%clk 0:00:07]} 83. Rd3+ {[%clk 0:00:20]}  Kg4 {[%clk 0:00:08]} 84. Ra3 {[%clk 0:00:21]}  Rf3 {[%clk 0:00:08]} 85. Ra4+ {[%clk 0:00:20]}  Kg3 {[%clk 0:00:09]} 86. Ke5 {[%clk 0:00:19]}  Kf2 {[%clk 0:00:10]} 87. Ke4 {[%clk 0:00:19]}  Re3+ {[%clk 0:00:11]} 88. Kf4 {[%clk 0:00:19]}  Rf3+ {[%clk 0:00:11]} 89. Kg4 {[%clk 0:00:19]}  Rg3+ {[%clk 0:00:11]} 90. Kh4 {[%clk 0:00:20]}  Rc3 {[%clk 0:00:11]} 91. Re4 {[%clk 0:00:16]}  Kf3 {[%clk 0:00:10]} 92. Re7 {[%clk 0:00:16]}  Rc4+ {[%clk 0:00:10]} 93. Kg5 {[%clk 0:00:16]}  Rc5+ {[%clk 0:00:10]} 94. Kf6 {[%clk 0:00:16]}  Rc6+ {[%clk 0:00:10]} 95. Ke5 {[%clk 0:00:16]}  Rc5+ {[%clk 0:00:10]} 96. Kd4 {[%clk 0:00:17]}  Rf5 {[%clk 0:00:10]} 97. Re3+ {[%clk 0:00:17]}  Kf4 {[%clk 0:00:10]} 98. Re4+ {[%clk 0:00:17]}  Kg5 {[%clk 0:00:10]} 99. Re8 {[%clk 0:00:18]}  Rf4+ {[%clk 0:00:11]} 100. Ke3 {[%clk 0:00:19]}  Rf5 {[%clk 0:00:11]} 101. Rg8+ {[%clk 0:00:19]}  Kf6 {[%clk 0:00:12]} 102. Ke4 {[%clk 0:00:20]}  Re5+ {[%clk 0:00:12]} 103. Kf4 {[%clk 0:00:20]}  Rf5+ {[%clk 0:00:12]} 104. Kg4 {[%clk 0:00:21]}  Ra5 {[%clk 0:00:11]} 105. Rb8 {[%clk 0:00:20]}  Ra4+ {[%clk 0:00:10]} 106. Kf3 {[%clk 0:00:21]}  Ra3+ {[%clk 0:00:10]} 107. Ke4 {[%clk 0:00:21]}  Ra4+ {[%clk 0:00:10]} 108. Kd3 {[%clk 0:00:22]}  Ra3+ {[%clk 0:00:11]} 1/2-1/2


[Site "https://www.chess.com"]

[Event "Titled Tuesday Blitz January 03 Early 2023"]
[White "Butolo, Alexandru-Mircea"]
[Black "Remizov, Yaroslav"]
[WhiteFideId "1261649"]
[BlackFideId "34134015"]
[WhiteElo "2033"]
[BlackElo "2421"]
[Result "0-1"]
[Round "03"]
[TimeControl "180+2"]
[Date "2023.01.03"]
[WhiteClock "0:00:03"]
[BlackClock "0:02:17"]

1. d4 {[%clk 0:03:00]}  Nf6 {[%clk 0:02:59]} 2. c4 {[%clk 0:02:59]}  b6 {[%clk 0:02:59]} 3. Nc3 {[%clk 0:02:54]}  Bb7 {[%clk 0:02:59]} 4. Nf3 {[%clk 0:02:48]}  g6 {[%clk 0:03:00]} 5. g3 {[%clk 0:02:44]}  Bg7 {[%clk 0:03:00]} 6. Bg2 {[%clk 0:02:44]}  O-O {[%clk 0:03:01]} 7. O-O {[%clk 0:02:44]}  d6 {[%clk 0:03:01]} 8. Qc2 {[%clk 0:02:40]}  Nbd7 {[%clk 0:02:59]} 9. Nd2 {[%clk 0:02:33]}  Bxg2 {[%clk 0:02:58]} 10. Kxg2 {[%clk 0:02:34]}  c6 {[%clk 0:02:52]} 11. Nde4 {[%clk 0:02:28]}  Nxe4 {[%clk 0:02:51]} 12. Qxe4 {[%clk 0:02:27]}  Rc8 {[%clk 0:02:51]} 13. Bg5 {[%clk 0:02:18]}  Re8 {[%clk 0:02:51]} 14. Rad1 {[%clk 0:01:47]}  h6 {[%clk 0:02:51]} 15. Be3 {[%clk 0:01:27]}  e5 {[%clk 0:02:50]} 16. dxe5 {[%clk 0:01:24]}  Nxe5 {[%clk 0:02:49]} 17. b3 {[%clk 0:00:29]}  h5 {[%clk 0:02:32]} 18. Qc2 {[%clk 0:00:25]}  Ng4 {[%clk 0:02:29]} 19. Bf4 {[%clk 0:00:24]}  d5 {[%clk 0:02:26]} 20. Qc1 {[%clk 0:00:12]}  Qf6 {[%clk 0:02:21]} 21. Na4 {[%clk 0:00:06]}  Rxe2 {[%clk 0:02:17]} 22. cxd5 {[%clk 0:00:06]}  g5 {[%clk 0:02:17]} 23. Bxg5 {[%clk 0:00:03]}  Rxf2+ {[%clk 0:02:17]} 24. Kg1 {[%clk 0:00:03]}  Qf3 {[%clk 0:02:17]} 0-1


[Site "https://www.chess.com"]